Cogmind - Beta 15 @@@ ROGUE MODE // 2025.09.17 @ 12:36:38 Player: shapeshifter Result: Destroyed by as-95732 with Assembled Heavy Rifle Performance ------------- Evolutions (0) 0 Regions Visited (4) 800 Robots Destroyed (24) 120 Value Destroyed (338) 338 Prototype IDs (25) 500 Alien Tech Used (0) 0 Bonus (0) 0 TOTAL SCORE: 1758 Bonus ------- None Cogmind --------- Core Integrity 0/250 Matter 300/300 Energy 100/100 System Corruption 0% Temperature Cool (0) Movement Core (150) Ox2 Location -9/Mines Parts ------- > --- POWER (1) -------- (None) > --- PROPULSION (2) --- (None) > --- UTILITY (2) ------ Small Storage Unit Seismic Detector > --- WEAPON (2) ------- Makeshift Sword > --- INVENTORY (8) ---- Lightpack 2.0 Bomb Drone Bay Assault Rifle Light Assault Rifle Remote Datajack Peak State ------------ > --- POWER ------------ Makeshift Power Source > --- PROPULSION ------- Wheel Compact Wheel > --- UTILITY ---------- Small Storage Unit Seismic Detector > --- WEAPON ----------- Light Assault Rifle Makeshift Sword > --- INVENTORY -------- Lightpack 2.0 Bomb Drone Bay Assault Rifle Light Assault Rifle Remote Datajack [Rating: 18] Favorites ----------- Power Light Ion Engine Engine Light Ion Engine Propulsion Light Treads Treads Light Treads Wheel Wheel Utility Small Storage Unit Device Seismic Detector Storage Small Storage Unit Weapon Light Assault Rifle Ballistic Gun Light Assault Rifle Slashing Weapon Makeshift Sword Build | -11 -10 -10 -10 -9 ------- Run | Yrd Mat Min Exi Min Slots Evolved . | . . . . . Power . | . . . . . Propulsion . | . . . . . Utility . | . . . . . Weapon . | . . . . . Parts Attached 14 | 7 2 3 2 . Power 3 | 1 1 . 1 . Engine 3 | 1 1 . 1 . Core . | . . . . . Reactor . | . . . . . Propulsion 4 | 2 . 2 . . Treads 2 | 2 . . . . Leg . | . . . . . Wheel 2 | . . 2 . . Hover . | . . . . . Flight . | . . . . . Utility 3 | 2 1 . . . Device 2 | 1 1 . . . Storage 1 | 1 . . . . Processor . | . . . . . Hackware . | . . . . . Protection . | . . . . . Artifact . | . . . . . Weapon 4 | 2 . 1 1 . Energy Gun . | . . . . . Energy Cannon . | . . . . . Ballistic Gun 3 | 2 . 1 . . Ballistic Cannon . | . . . . . Launcher . | . . . . . Special Weapon . | . . . . . Impact Weapon . | . . . . . Slashing Weapon 1 | . . . 1 . Piercing Weapon . | . . . . . Special Melee Weapon . | . . . . . Unidentified Prototypes . | . . . . . Parts Lost 9 | . 2 3 . 4 Power 2 | . 1 . . 1 Propulsion 4 | . . 2 . 2 Utility 1 | . 1 . . . Weapon 2 | . . 1 . 1 Highest Loss Streak 4 | . 1 2 . 4 To Critical Strikes 2 | . . 1 . 1 Average Backups 6 | 5 7 7 6 5 Power . | 1 . . . . Propulsion 1 | 2 2 1 . . Utility 2 | . 2 2 2 2 Weapon 2 | 1 2 2 3 2 Tool/Special . | . . . . . Unused Backups 12 | . . . 5 7 Power . | . . . . . Propulsion . | . . . . . Utility 7 | . . . 4 3 Weapon 4 | . . . 1 3 Tool/Special 1 | . . . . 1 Average Slot Usage (%) 98 | . 100 94 100 94 Engine 13 | . 14 14 14 13 Treads 13 | . 28 17 . . Wheel 12 | . . 5 28 24 Device 14 | . 14 14 14 14 Storage 14 | . 14 14 14 14 Ballistic Gun 24 | . 28 28 21 13 Slashing Weapon 3 | . . . 6 14 Peak Build Rating 18 | 7 8 8 17 18 Average Rating 8 | 4 7 6 11 17 On Entrance 7 | . 7 7 7 17 Naked Turns . | . . . . . Heaviest Build 13 | 13 13 11 13 13 Greatest Support 40 | 40 40 40 26 26 Greatest Overweight (x) 3 | 1 . 3 . 2 Average Overweight (x) . | . . . . . Largest Inventory Capacity 8 | 8 8 8 8 8 Average Capacity 7 | 7 8 8 8 8 Most Carried 8 | 8 8 8 8 8 Average Carried 6 | 5 7 7 6 7 Final Capacity 8 | 8 8 8 8 8 Final Carried 8 | 6 7 6 8 8 Class Distribution -------------------- 100% | Mutant Dominant Class ---------------- Mutant | -10/Materials Mutant | -10/Mines Mutant | -10/Exiles Mutant | -9/Mines Resources | -11 -10 -10 -10 -9 ----------- Run | Yrd Mat Min Exi Min Matter Collected 477 | 302 99 50 26 . Remotely . | . . . . . Salvage Created 628 | 179 336 72 41 . Parts 48 | 14 27 4 3 . Haulers Intercepted . | . . . . . Recyclers Shooed 2 | 1 1 . . . Parts Field Recycled . | . . . . . Retrieved Matter . | . . . . . Parts Self-Destructed . | . . . . . Prevented . | . . . . . Kills | -11 -10 -10 -10 -9 ------- Run | Yrd Mat Min Exi Min Combat Hostiles Destroyed 16 | . 11 5 . . Guns 16 | . 11 5 . . Classes Destroyed 5 | 2 3 . . . Tunneler 4 | 4 . . . . Recycler 1 | 1 . . . . Watcher 3 | . 3 . . . Swarmer 12 | . 7 5 . . Grunt 4 | . 4 . . . Best Kill Streak 6 | 2 6 3 . . Combat Bots Only 5 | . 5 3 . . Max Kills in Single Turn 1 | 1 1 1 . . Gunslinging . | . . . . . Exploded . | . . . . . Melee . | . . . . . Uniques/NPCs Destroyed . | . . . . . Combat | -11 -10 -10 -10 -9 -------- Run | Yrd Mat Min Exi Min Hostile Shots Fired 169 | . 97 47 . 25 Missed 49 | . 31 11 . 7 Hits 120 | . 66 36 . 18 Projectile 120 | . 66 36 . 18 Critical Strikes 2 | . . 1 . 1 Damage Taken 1100 | . 586 276 . 238 Core 260 | . 120 67 . 73 Absorbed by Shields . | . . . . . Core Remaining (%) 100 | 100 . . . . Volleys Fired 82 | 16 47 19 . . Largest 2 | 2 2 2 . . Hottest 40 | 40 40 40 . . Shots Fired 162 | 32 94 36 . . Gun 162 | 32 94 36 . . Cannon . | . . . . . Launcher . | . . . . . Special . | . . . . . Kinetic 162 | 32 94 36 . . Thermal . | . . . . . Explosive . | . . . . . Electromagnetic . | . . . . . Robot Hit Streak 7 | 7 7 7 . . Robot Miss Streak 5 | 3 5 4 . . Penetration Max . | . . . . . Secondary Targets 4 | . 3 1 . . Max Gunslinging Chain 1 | . 1 1 . . Shots Hit Robots 95 | 21 52 21 1 . Core Hits 43 | 10 26 7 . . Critical Kills . | . . . . . Critical Parts Destroyed . | . . . . . Critical Strikes . | . . . . . Melee Attacks 1 | . . . 1 . Impact . | . . . . . Slashing 1 | . . . 1 . Piercing . | . . . . . Sneak Attacks . | . . . . . Combat Hostiles . | . . . . . Follow-up Attacks . | . . . . . Damage Inflicted 865 | 157 445 186 77 . Guns 787 | 157 444 186 . . Cannons . | . . . . . Explosions . | . . . . . Melee 77 | . . . 77 . Ramming 1 | . 1 . . . Kinetic 787 | 157 444 186 . . Thermal . | . . . . . Explosive . | . . . . . Electromagnetic . | . . . . . Impact . | . . . . . Slashing 77 | . . . 77 . Piercing . | . . . . . Highest Corruption . | . . . . . Average Corruption . | . . . . . Corruption Purged . | . . . . . Corruption Blocked . | . . . . . Overload Shots . | . . . . . Overflow Damage 41 | . . . 41 . Projectiles . | . . . . . Explosions . | . . . . . Melee 41 | . . . 41 . Knockbacks . | . . . . . Impact . | . . . . . Kinetic . | . . . . . Secondary . | . . . . . Self-Inflicted Damage . | . . . . . Shots . | . . . . . Rammed 1 | . 1 . . . Targets Rammed 1 | . 1 . . . Kicked . | . . . . . Crushed . | . . . . . Highest Temperature 12 | . 12 . . . Average Temperature 7 | . 7 . . . Received Heat Transfer 90 | . 90 . . . Siege Activations . | . . . . . Martial Activations . | . . . . . Shielding Activations . | . . . . . Robots Disrupted . | . . . . . Combat Hostiles . | . . . . . Robots Corrupted . | . . . . . Combat Hostiles . | . . . . . Parts Fried . | . . . . . Impact Corruptions . | . . . . . Robots Melted . | . . . . . Combat Hostiles . | . . . . . Parts Melted . | . . . . . Heat Transferred . | . . . . . Parts Sabotaged . | . . . . . Parts Stolen . | . . . . . Parts Stripped . | . . . . . Power Chain Reactions . | . . . . . Alert | -11 -10 -10 -10 -9 ------- Run | Yrd Mat Min Exi Min Maximum Alert Level . | . . . . . Low Security (%) 100 | 100 100 100 . 100 Level 1 . | . . . . . Level 2 . | . . . . . Level 3 . | . . . . . Level 4 . | . . . . . Level 5 . | . . . . . High Security . | . . . . . Max Security . | . . . . . Peak Influence 117 | 5 117 60 . . Initial 26 | . . 26 . . Average 28 | . 53 19 . . Influence Increases 434 | 25 284 120 5 . Destroy 0b10 Robot/C 320 | . 220 100 . . Destroy 0b10 Robot/NC 45 | 25 15 . 5 . Destroy Leader 56 | . 36 20 . . Successful Hack 13 | . 13 . . . Influence Decreases 434 | 25 215 169 25 . Entered New Map 63 | . . 43 20 . Time Decay 341 | 25 195 116 5 . Lost Part 30 | . 20 10 . . Squads Dispatched 2 | . 2 . . . Investigation 1 | . 1 . . . Extermination . | . . . . . Reinforcement 1 | . 1 . . . Assault . | . . . . . Garrison . | . . . . . Intercept . | . . . . . Searches Triggered . | . . . . . Construction Impeded . | . . . . . Haulers Reinforced . | . . . . . Active Scanning Responses . | . . . . . Cargo Convoy Interrupts . | . . . . . Stealth | -11 -10 -10 -10 -9 --------- Run | Yrd Mat Min Exi Min Distress Signals . | . . . . . Communications Jammed . | . . . . . Distress Signals . | . . . . . Times Spotted 37 | . 19 6 . 12 Peak Tracking Total 19 | . 6 3 . 19 Tactical Retreats 3 | . . . . 3 Traps | -11 -10 -10 -10 -9 ------- Run | Yrd Mat Min Exi Min Traps Triggered 1 | . 1 . . . Indirectly . | . . . . . Trap Hack Attempts . | . . . . . Triggered . | . . . . . Disarmed . | . . . . . Reprogrammed . | . . . . . Reused . | . . . . . Traps Extracted . | . . . . . Installed . | . . . . . Triggered . | . . . . . Machines | -11 -10 -10 -10 -9 ---------- Run | Yrd Mat Min Exi Min Machines Disabled . | . . . . . Max in Single Turn . | . . . . . Machines Repaired . | . . . . . Machines Dismantled . | . . . . . Machines Sabotaged . | . . . . . Overloaded Fab Kills . | . . . . . Hacking | -11 -10 -10 -10 -9 --------- Run | Yrd Mat Min Exi Min Machines Accessed 7 | . 4 . 2 1 Terminals 4 | . 4 . . . Fabricators . | . . . . . Repair Stations . | . . . . . Recycling Units . | . . . . . Scanalyzers . | . . . . . Garrison Access . | . . . . . Total Hacks 13 | . 10 . 2 1 Successful 8 | . 5 . 2 1 Failed 5 | . 5 . . . Catastrophic 1 | . 1 . . . Database Lockouts . | . . . . . Manual 7 | . 6 . 1 . Terminals 10 | . 10 . . . Fabricators . | . . . . . Repair Stations . | . . . . . Recycling Units . | . . . . . Scanalyzers . | . . . . . Garrison Access . | . . . . . Terminal Hacks 5 | . 2 . 2 1 Record 1 | . . . 1 . Prototype ID Bank 1 | . 1 . . . Open Door 1 | . . . . 1 Zone Layout 1 | . 1 . . . Proto ID Catalog 1 | . . . 1 . Fabricator Hacks . | . . . . . Repair Station Hacks . | . . . . . Recycling Unit Hacks . | . . . . . Scanalyzer . | . . . . . Garrison Access Hacks . | . . . . . Unauthorized Hacks 3 | . 3 . . . Terminals 3 | . 3 . . . Botnet 2 | . 2 . . . Skim 1 | . 1 . . . Fabricators . | . . . . . Repair Stations . | . . . . . Recycling Units . | . . . . . Scanalyzers . | . . . . . Garrison Access . | . . . . . Data Cores Recovered . | . . . . . Used . | . . . . . Hacking Detections 4 | . 4 . . . Full Trace Events . | . . . . . Feedback Events . | . . . . . Feedback Blocked . | . . . . . Robot Schematics Acquired . | . . . . . Robots Built . | . . . . . Authchips . | . . . . . Time . | . . . . . Total Robot Build Rating . | . . . . . Part Schematics Acquired . | . . . . . Parts Built . | . . . . . Authchips . | . . . . . Time . | . . . . . Total Part Build Rating . | . . . . . Parts Repaired . | . . . . . Time . | . . . . . Parts Recycled . | . . . . . Recycled Matter . | . . . . . Retrieved Matter . | . . . . . Retrieved Components . | . . . . . Parts Scanalyzed . | . . . . . Part Schematics Acquired . | . . . . . Parts Damaged . | . . . . . Bothacking | -11 -10 -10 -10 -9 ------------ Run | Yrd Mat Min Exi Min Used RIF Installer . | . . . . . Robots Hacked . | . . . . . Non-combat . | . . . . . Combat . | . . . . . Robot Hacks Applied . | . . . . . Relay Couplers Released . | . . . . . Fabnet Peak Effective % . | . . . . . Robots Rewired 2 | . . . 2 . Allies Hacked . | . . . . . Hacks Repelled . | . . . . . Allies | -11 -10 -10 -10 -9 -------- Run | Yrd Mat Min Exi Min Total Allies 5 | . . . 2 3 Largest Group 3 | . . . 2 3 Highest-Rated Group 40 | . . . 29 40 Highest-Rated Ally 21 | . . . 21 21 Total Orders . | . . . . . Ally Attacks 21 | . . . . 21 Total Damage 164 | . . . . 164 Kills 2 | . . . . 2 Allies Corrupted . | . . . . . Allies Melted . | . . . . . Intel | -11 -10 -10 -10 -9 ------- Run | Yrd Mat Min Exi Min Active Infowar (turns) 1612 | 42 577 321 517 155 Seismic 1612 | 42 577 321 517 155 Robot Analysis Total . | . . . . . Derelict Logs Recovered 2 | . . 1 . 1 Drone Launches . | . . . . . Drone Recoveries . | . . . . . Exploration | -11 -10 -10 -10 -9 ------------- Run | Yrd Mat Min Exi Min Turns Passed 1844 | 270 581 321 517 155 Spaces Moved 1256 | 144 275 182 495 160 Core 24 | 21 . 2 . 1 Treads 538 | 123 275 140 . . Legs . | . . . . . Wheels 694 | . . 40 495 159 Hover . | . . . . . Flight . | . . . . . Fastest Speed 50 | 50 160 90 90 90 Average Speed 119 | 146 160 145 90 90 Slowest Speed 200 | 160 160 200 90 150 Overloaded Moves . | . . . . . Propulsion Burnouts . | . . . . . Robots Hopped . | . . . . . Potential Cave-ins . | . . . . . Cave-ins Triggered . | . . . . . Exploration Rate (%) 44 | 7 51 36 86 41 Regions Visited 4 Branch Regions 3 Pre-discovered Areas 1 | . . . 1 . Known Exits Taken 1 | . . . 1 . Unknown Exits Taken 3 | 1 1 1 . . Scrap Searched 1 | . . 1 . . Spaces Dug . | . . . . . Terrain Destroyed . | . . . . . Melee . | . . . . . Projectile . | . . . . . AOE . | . . . . . Terrain Rammed . | . . . . . Walls Destroyed . | . . . . . Machines Disabled . | . . . . . Actions | -11 -10 -10 -10 -9 --------- Run | Yrd Mat Min Exi Min Total 1466 | 178 340 210 568 170 Wait 57 | . 13 5 32 7 Move 1252 | 143 274 181 494 160 Hop . | . . . . . Pick Up 26 | 12 3 2 8 1 Fast Attach 1 | 1 . . . . Attach 11 | 6 2 3 . . Detach . | . . . . . Swap 2 | . . . 2 . Drop 10 | . . . 8 2 Fire 82 | 16 47 19 . . Melee 1 | . . . 1 . Ram . | . . . . . Kick . | . . . . . Crush 1 | . 1 . . . Escape Stasis . | . . . . . Rewire 23 | . . . 23 . Trap . | . . . . . Miscellaneous . | . . . . . Route ------- -11/Scrapyard -10/Materials (discovered 2 exits: [*Mat] / [*Min]) -10/Mines (discovered 2 exits: [*Mat] / *Exi) -10/Exiles (discovered 2 exits: *Min x2) -9/Mines History --------- Turn | Location | Event 26 | -11/Scrapyard | Discovered new exit (range 13) 271 | -11/Scrapyard | Entered Materials 310 | -10/Materials | Build established: Mutant 557 | -10/Materials | Discovered new exit (range 16) 776 | -10/Materials | Discovered new exit (range 8) 852 | -10/Materials | Entered Mines 884 | -10/Mines | Discovered new exit (range 11) 969 | -10/Mines | Core integrity fell below 50% 1011 | -10/Mines | Deemed a non-threat by the Exiles lab entrance 1012 | -10/Mines | Discovered new exit (range 5) 1173 | -10/Mines | Entered Exiles 1173 | -10/Exiles | Found Exiles lab destroyed 1174 | -10/Exiles | Identified exit to Mines 1250 | -10/Exiles | Learned location of Zion (-7) 1568 | -10/Exiles | Opened EX-Vault 1573 | -10/Exiles | Found Prototype Storage 1575 | -10/Exiles | Identified Lightpack 2.0 1690 | -10/Exiles | Entered Mines 1690 | -9/Mines | Accompanied by 2 allies 1697 | -9/Mines | Found the Drone Emporium 1701 | -9/Mines | Found Prototype Device 1750 | -9/Mines | Assembled infested the area 1795 | -9/Mines | Core integrity fell below 20% 1835 | -9/Mines | Assisted by bots powering up and referring to "LRC-V3" 1845 | -9/Mines | Destroyed by as-95732 with Assembled Heavy Rifle Last Messages --------------- strings attached!" 01700_ Dropped Mak. Hammer. 01701_ Dropped Imp. Terrain Scanner. 01701_ Acquired Prototype Device. 01720_ A derelict is hurriedly installing traps. 01729_ Acquired derelict log, extracted data. Data stored: Recycling entrances (x1). 01750_ ALERT: Infestation in the mines, dispatching Demolisher response squad. 01819_ Com. Wheel destroyed. 01833_ Lgt. Assault Rifle destroyed. 01835_ Trooper 2a: "Hello LRC-V3. What is your command?" 01835_ Mercenary 2a: "Hello LRC-V3. What is your command?" 01835_ Trooper 2b: "Hello LRC-V3. What is your command?" 01837_ Mak. Power Source destroyed. 01839_ Critical hit (Destroy). 01839_ Wheel destroyed. 01840_ as-16581 suffers critical hit (Burn). 01843_ Trooper 2a destroyed. 01843_ as-16558 destroyed. Map ----- +----------------------------------------------------+ | | | | | | | | | | | | | | | | | | | ?????????????????????????????????????? | | ?????????????????????????????????????? | | ?????????????????????????????????????? | | ?????????????????????????????????????? | | ?????????????????????????????????????? | | ?????????????????????????????????????? | | ?????????????????????????????????????? | | ?????????????????????????????????????? | | ?????????????????????????????????????? | | ?????????????????????????????????????? | | ?????????????????????????????????????? | | ?????????????????????????????????????? | | ?????????????????????????????????????? | | ???????????#####?????????????????????? | | ???????????# g #?????????????????????? | | ???????????# [ #####?????????????????? | | ???? ??????#g@ ##????????????????? | | ????# ???## = ##???????????????? | | ????# ## #######?????????? | | ?????# u ???????? | | ?????### #######?????????? | | ???????### ##??????????????? | | ???######## #??????????????? | | ??##""""#### ### a #??????????????? | | ??#" / "#?#####?##% ##??????????????? | | ??#" ! "#????????## #??????????????? | | ??## ##?????????# a#??????????????? | | ?#### ####????????# #??????????????? | | ?# X #????????# ###????????????? | | ?# #????????# #????????????? | | ?# #????????### #????????????? | | ?# #??????????# #????????????? | | ?# #??????????# ####?????????? | | ?# #??????????# #?????????? | | ?# #??????????# #?????????? | | ?# #??????????#### #?????????? | | ?# #?????????????# #?????????? | | ?# #?????????????# #?????????? | | ?# #?????????????# #?????????? | | ?# #?????????????# #?????????? | | ?#### ####?????????????# #?????????? | +----------------------------------------------------+ Best States ------------- Heat Dissipation 25 Energy Generation 15 Energy Capacity 250 Matter Stores 300 Matter Capacity 300 Sight Range 16 Terrain Scan Density 10 Evasion (%) 50 Recoil Reduction 2 Item Schematics ----------------- None Robot Schematics ------------------ None Fabricated ------------ Nothing Repaired ---------- Nothing Alien Tech Used ----------------- None Achievements -------------- None Challenges ------------ None Game ------ Seed ShockFieldthrustArchive Manual? 0 Play Time 00:09:50 Cumulative 295.0 hours Start 2025.09.17 @ 03:38:31 End 2025.09.17 @ 12:36:38 Sessions 2 Manual Loads 0 Difficulty Rogue Special Mode None Game No. 417 Rogue 417 Adventurer 0 Explorer 0 Win Type - Total 9 Types 5/0/1/2/1/0/0/0/0/0 Lore% 86 Gallery% 81 Achievement% 64 Wizard Run 0 Options --------- Layout 0 ASCII 0 Keyboard 0 Movement Mouse Keybinds 0 Fullscreen 1 Font 24/Tamsyn Map View 76x50 Zoom Use 0% Tactical HUD 1 Map Filters NONE Filters NONE Steam 1 RUN: d21708e1-8847-48c9-9f9c-72fe3beeb488